fUSD/lending_fUSD_20240416
["ID","MTS","AMOUNT","RATE_DAILY","PERIOD"]
[322721371,1713228850037,-511.55,0.00020957,2]
[322721372,1713228850048,-511.55,0.00020957,2]
[322721373,1713228850057,-511.55,0.00020957,2]
[322721374,1713228850066,-511.73269664,0.00020957,2]
[322721375,1713228850075,-719.25,0.00020957,2]
[322721376,1713228850085,-719.25,0.00020957,2]
[322721377,1713228850094,-719.25,0.00020957,2]
[322721378,1713228850103,-719.25,0.00020957,2]
[322721379,1713228850113,-719.33,0.00020957,2]
[322721380,1713228850122,-196.39178072,0.00020957,2]
[322721381,1713228850131,-898.72,0.00020957,2]
[322721382,1713228850140,-898.72,0.00020957,2]
[322721383,1713228850150,-898.72,0.00020957,2]
[322721384,1713228850159,-898.72,0.00020957,2]
[322721385,1713228850168,-898.72017924,0.00020957,2]
[322721386,1713228850178,-612.35,0.00020957,2]
[322721387,1713228850188,-612.35,0.00020957,2]
[322721388,1713228850197,-612.35,0.00020957,2]
[322721389,1713228850207,-612.35,0.00020957,2]
[322721390,1713228850217,-612.58996455,0.00020957,2]
[322721391,1713228850226,-1071.16,0.00020957,2]
[322721392,1713228850235,-1071.16,0.00020957,2]
[322721393,1713228850245,-1071.16,0.00020957,2]
[322721394,1713228850254,-1071.16,0.00020957,2]
[322721395,1713228850264,-1071.21959807,0.00020957,2]
[322721396,1713228850274,-798.12,0.00020957,2]
[322721397,1713228850284,-798.12,0.00020957,2]
[322721398,1713228850297,-919.73,0.00020957,2]
[322721399,1713228850306,-798.12,0.00020957,2]
[322721400,1713228850315,-798.12,0.00020957,2]
[322721401,1713228850324,-919.73,0.00020957,2]
[322721402,1713228850333,-798.32722583,0.00020957,2]
[322721403,1713228850342,-1230.61,0.00020957,2]
[322721404,1713228850355,-919.73,0.00020957,2]
[322721405,1713228850364,-919.73,0.00020957,2]
[322721406,1713228850373,-919.84025369,0.00020957,2]
[322721407,1713228850382,-1230.61,0.00020957,2]
[322721408,1713228850392,-1230.61,0.00020957,2]
[322721409,1713228850401,-1230.61,0.00020957,2]
[322721410,1713228850410,-1230.75097485,0.00020957,2]
[322721411,1713228850419,-973.45,0.00020957,2]
[322721412,1713228850428,-973.45,0.00020957,2]
[322721413,1713228850438,-1308.25,0.00020957,2]
[322721414,1713228850448,-973.45,0.00020957,2]
[322721415,1713228850457,-1308.25,0.00020957,2]
[322721416,1713228850466,-973.45,0.00020957,2]
[322721417,1713228850476,-1308.25,0.00020957,2]
[322721418,1713228850485,-973.47849827,0.00020957,2]
[322721419,1713228850495,-1308.25,0.00020957,2]
[322721420,1713228850505,-1308.36014301,0.00020957,2]
[322721421,1713228850514,-965.5,0.00020957,2]
[322721422,1713228850524,-965.5,0.00020957,2]
[322721423,1713228850534,-965.5,0.00020957,2]
[322721424,1713228850546,-965.5,0.00020957,2]
[322721425,1713228850556,-965.68435821,0.00020957,2]
[322721426,1713228850565,-784.1,0.00020957,2]
[322721427,1713228850575,-784.1,0.00020957,2]
[322721428,1713228850584,-784.1,0.00020957,2]
[322721429,1713228850594,-784.1,0.00020957,2]
[322721430,1713228850603,-784.28125109,0.00020957,2]
[322721431,1713228850613,-774.03,0.00020957,2]
[322721432,1713228850623,-774.03,0.00020957,2]
[322721433,1713228850632,-1724.35,0.00020957,2]
[322721434,1713228850642,-774.03,0.00020957,2]
[322721435,1713228850653,-1724.35,0.00020957,2]
[322721436,1713228850673,-774.03,0.00020957,2]
[322721437,1713228850691,-1724.35,0.00020957,2]
[322721438,1713228850700,-774.23232629,0.00020957,2]
[322721439,1713228850709,-1724.35,0.00020957,2]
[322721440,1713228850719,-1724.38102061,0.00020957,2]
[322721441,1713228850729,-500.0,0.00020957,2]
[322721442,1713228850738,-500.0,0.00020957,2]
[322721443,1713228850748,-409.4983541,0.00020957,2]
[322721444,1713228850757,-1149.58,0.00020957,2]
[322721445,1713228850766,-1149.58,0.00020957,2]
[322721446,1713228850775,-1149.58,0.00020957,2]
[322721448,1713228850785,-1149.58,0.00020957,2]
[322721449,1713228850795,-1149.81914379,0.00020957,2]
[322721450,1713228850804,-509.55,0.00020957,2]
[322721451,1713228850813,-509.55,0.00020957,2]
[322721452,1713228850823,-987.19,0.00020957,2]
[322721453,1713228850847,-509.55,0.00020957,2]
[322721454,1713228850866,-987.19,0.00020957,2]
[322721455,1713228850884,-987.19,0.00020957,2]
[322721456,1713228850905,-987.19,0.00020957,2]
[322721457,1713228850922,-509.55,0.00020957,2]
[322721458,1713228850940,-987.25321852,0.00020957,2]
[322721459,1713228850959,-509.76965006,0.00020957,2]
[322721460,1713228850977,-1326.31,0.00020957,2]
[322721461,1713228850995,-715.83,0.00020957,2]
[322721462,1713228851014,-1326.31,0.00020957,2]
[322721463,1713228851033,-715.83,0.00020957,2]
[322721464,1713228851054,-1326.31,0.00020957,2]
[322721465,1713228851070,-715.83,0.00020957,2]
[322721466,1713228851086,-1326.31,0.00020957,2]
[322721467,1713228851101,-715.83,0.00020957,2]
[322721468,1713228851117,-715.96202609,0.00020957,2]
[322721469,1713228851132,-1326.33064803,0.00020957,2]
[322721470,1713228851158,-599.21,0.00020957,2]
[322721471,1713228851175,-599.21,0.00020957,2]
[322721472,1713228851190,-599.21,0.00020957,2]
[322721473,1713228851205,-599.21,0.00020957,2]
[322721474,1713228851219,-599.39930682,0.00020957,2]
[322721475,1713228851244,-852.56,0.00020957,2]
[322721476,1713228851263,-852.56,0.00020957,2]
[322721477,1713228851278,-852.56,0.00020957,2]
[322721478,1713228851295,-852.56,0.00020957,2]
[322721479,1713228851311,-852.6104539,0.00020957,2]
[322721480,1713228851337,-1794.7,0.00020957,2]
[322721481,1713228851356,-1794.7,0.00020957,2]
[322721482,1713228851370,-1794.7,0.00020957,2]
[322721483,1713228851384,-1794.7,0.00020957,2]
[322721484,1713228851409,-1794.7360889,0.00020957,2]
[322721485,1713228851425,-691.32,0.00020957,2]
[322721486,1713228851441,-691.32,0.00020957,2]
[322721487,1713228851455,-691.32,0.00020957,2]
[322721488,1713228851469,-691.32,0.00020957,2]
[322721489,1713228851484,-691.43721444,0.00020957,2]
[322721490,1713228851499,-1497.41,0.00020957,2]
[322721491,1713228851513,-1497.41,0.00020957,2]
[322721492,1713228851528,-557.12,0.00020957,2]
[322721493,1713228851545,-1497.41,0.00020957,2]
[322721494,1713228851560,-557.12,0.00020957,2]
[322721495,1713228851575,-1497.41,0.00020957,2]
[322721496,1713228851590,-557.12,0.00020957,2]
[322721497,1713228851604,-1497.529792,0.00020957,2]
[322721498,1713228851618,-557.12,0.00020957,2]
[322721499,1713228851633,-557.18309135,0.00020957,2]
[322721500,1713228851648,-1328.99,0.00020957,2]
[322721501,1713228851662,-1328.99,0.00020957,2]
[322721502,1713228851677,-1328.99,0.00020957,2]
[322721503,1713228851690,-1328.99,0.00020957,2]
[322721504,1713228851703,-1329.10321957,0.00020957,2]
[322721505,1713228851718,-1829.23,0.00020957,2]
[322721506,1713228851732,-1829.23,0.00020957,2]
[322721507,1713228851747,-1829.23,0.00020957,2]
[322721508,1713228851761,-1829.23,0.00020957,2]
[322721509,1713228851775,-1829.38514782,0.00020957,2]
[322721510,1713228851791,-1040.39,0.00020957,2]
[322721511,1713228851805,-1040.39,0.00020957,2]
[322721512,1713228851819,-1040.39,0.00020957,2]
[322721513,1713228851835,-1040.39,0.00020957,2]
[322721514,1713228851849,-1040.53438468,0.00020957,2]
[322721515,1713228851863,-1130.45,0.00020957,2]
[322721516,1713228851876,-1130.45,0.00020957,2]
[322721517,1713228851889,-1130.45,0.00020957,2]
[322721518,1713228851903,-1130.45,0.00020957,2]
[322721519,1713228851918,-1130.51370503,0.00020957,2]
[322721520,1713228851930,-1237.39,0.00020957,2]
[322721521,1713228851947,-2337.81,0.00020957,2]
[322721522,1713228851962,-1237.39,0.00020957,2]
[322721523,1713228851975,-2337.81,0.00020957,2]
[322721524,1713228851989,-1237.39,0.00020957,2]
[322721525,1713228852004,-2337.81,0.00020957,2]
[322721526,1713228852019,-1237.39,0.00020957,2]
[322721527,1713228852032,-1237.4090145,0.00020957,2]
[322721528,1713228852047,-2337.81,0.00020957,2]
[322721529,1713228852061,-2337.84380618,0.00020957,2]
[322721530,1713228852074,-2732.84,0.00020957,2]
[322721531,1713228852088,-2732.84,0.00020957,2]
[322721532,1713228852102,-2732.84,0.00020957,2]
[322721533,1713228852116,-2732.84,0.00020957,2]
[322721534,1713228852130,-2733.06442865,0.00020957,2]
[322721535,1713228852146,-2704.91,0.00020957,2]
[322721536,1713228852160,-2704.91,0.00020957,2]
[322721537,1713228852174,-2704.91,0.00020957,2]
[322721538,1713228852187,-2704.91,0.00020957,2]
[322721539,1713228852200,-2705.10119711,0.00020957,2]
[322721540,1713228852214,-1140.26,0.00020957,2]
[322721541,1713228852228,-1140.26,0.00020957,2]
[322721542,1713228852241,-1140.26,0.00020957,2]
[322721543,1713228852254,-1140.26,0.00020957,2]
[322721544,1713228852269,-1140.29298563,0.00020957,2]
[322721545,1713228852283,-2820.09,0.00020957,2]
[322721546,1713228852299,-2820.09,0.00020957,2]
[322721547,1713228852314,-2820.09,0.00020957,2]
[322721548,1713228852328,-2820.09,0.00020957,2]
[322721549,1713228852341,-2820.12386179,0.00020957,2]
[322721550,1713228852355,-827.01,0.00020957,2]
[322721551,1713228852368,-827.01,0.00020957,2]
[322721552,1713228852381,-827.01,0.00020957,2]
[322721553,1713228852394,-827.01,0.00020957,2]
[322721554,1713228852408,-827.14841943,0.00020957,2]
[322721555,1713228852421,-1761.28,0.00020957,2]
[322721556,1713228852435,-1761.28,0.00020957,2]
[322721557,1713228852448,-1761.28,0.00020957,2]
[322721558,1713228852463,-1761.28,0.00020957,2]
[322721559,1713228852477,-1761.48524131,0.00020957,2]
[322721560,1713228852490,-564.62,0.00020957,2]
[322721561,1713228852503,-564.62,0.00020957,2]
[322721562,1713228852517,-564.62,0.00020957,2]
[322721563,1713228852530,-564.62,0.00020957,2]
[322721564,1713228852545,-564.83,0.00020957,2]
[322721565,1713228852558,-1146.92,0.00020957,2]
[322721566,1713228852572,-1146.92,0.00020957,2]
[322721567,1713228852586,-1146.92,0.00020957,2]
[322721568,1713228852600,-1146.92,0.00020957,2]
[322721569,1713228852613,-1147.09622391,0.00020957,2]
[322721570,1713228852628,-1391.11,0.00020957,2]
[322721571,1713228852642,-1391.11,0.00020957,2]
[322721572,1713228852656,-1391.11,0.00020957,2]
[322721573,1713228852670,-1391.11,0.00020957,2]
[322721574,1713228852683,-1391.29664498,0.00020957,2]
[322721575,1713228852695,-4411.48,0.00020957,2]
[322721576,1713228852708,-4411.48,0.00020957,2]
[322721577,1713228852721,-4411.48,0.00020957,2]
[322721578,1713228852736,-4411.48,0.00020957,2]
[322721579,1713228852750,-4411.71311797,0.00020957,2]
[322721580,1713228852765,-639.91,0.00020957,2]
[322721581,1713228852779,-639.91,0.00020957,2]
[322721582,1713228852794,-639.91,0.00020957,2]
[322721583,1713228852806,-639.91,0.00020957,2]
[322721584,1713228852819,-640.06287585,0.00020957,2]
[322721585,1713228852836,-1475.43,0.00020957,2]
[322721586,1713228852854,-1475.43,0.00020957,2]
[322721587,1713228852868,-1475.43,0.00020957,2]
[322721588,1713228852882,-1475.43,0.00020957,2]
[322721589,1713228852898,-1475.47253863,0.00020957,2]
[322721590,1713228852913,-1744.76,0.00020957,2]
[322721591,1713228852930,-1744.76,0.00020957,2]
[322721592,1713228852943,-1744.76,0.00020957,2]
[322721593,1713228852960,-1744.76,0.00020957,2]
[322721594,1713228852975,-1744.94,0.00020957,2]
[322721595,1713228852990,-674.63,0.00020957,2]
[322721596,1713228853005,-1074.59,0.00020957,2]
[322721597,1713228853019,-674.63,0.00020957,2]
[322721598,1713228853034,-1074.59,0.00020957,2]
[322721599,1713228853049,-674.63,0.00020957,2]
[322721600,1713228853063,-1074.59,0.00020957,2]
[322721601,1713228853077,-674.63,0.00020957,2]
[322721602,1713228853091,-1074.59,0.00020957,2]
[322721603,1713228853105,-674.65601404,0.00020957,2]
[322721604,1713228853119,-1074.82248596,0.00020957,2]
[322721605,1713228853133,-1390.8,0.00020957,2]
[322721606,1713228853148,-1390.8,0.00020957,2]
[322721607,1713228853162,-1390.8,0.00020957,2]
[322721608,1713228853176,-1390.8,0.00020957,2]
[322721609,1713228853190,-1390.9120022,0.00020957,2]
[322721610,1713228853204,-786.35,0.00020957,2]
[322721611,1713228853218,-786.35,0.00020957,2]
[322721612,1713228853231,-786.35,0.00020957,2]
[322721613,1713228853245,-786.35,0.00020957,2]
[322721614,1713228853258,-786.48681653,0.00020957,2]
[322721615,1713228853272,-825.37,0.00020957,2]
[322721616,1713228853285,-825.37,0.00020957,2]
[322721617,1713228853300,-825.37,0.00020957,2]
[322721618,1713228853314,-825.37,0.00020957,2]
[322721619,1713228853328,-825.58,0.00020957,2]
[322721620,1713228853343,-1157.68,0.00020957,2]
[322721621,1713228853358,-1157.68,0.00020957,2]
[322721622,1713228853372,-1157.68,0.00020957,2]
[322721623,1713228853385,-1157.68,0.00020957,2]
[322721624,1713228853399,-1157.7410193,0.00020957,2]
[322721625,1713228853412,-1116.82,0.00020957,2]
[322721626,1713228853427,-532.54415718,0.00020957,2]
[322721627,1713228853440,-1116.82,0.00020957,2]
[322721628,1713228853453,-1116.82,0.00020957,2]
[322721629,1713228853467,-1116.82,0.00020957,2]
[322721630,1713228853482,-1116.87487357,0.00020957,2]
[322721631,1713228853495,-2736.41,0.00020957,2]
[322721632,1713228853510,-2736.41,0.00020957,2]
[322721633,1713228853522,-2736.41,0.00020957,2]
[322721634,1713228853536,-2736.41,0.00020957,2]
[322721635,1713228853550,-2736.60691476,0.00020957,2]
[322721636,1713228853563,-1064.37,0.00020957,2]
[322721637,1713228853577,-1051.67,0.00020957,2]
[322721638,1713228853591,-1064.37,0.00020957,2]
[322721639,1713228853605,-1051.67,0.00020957,2]
[322721640,1713228853619,-1064.37,0.00020957,2]
[322721641,1713228853632,-1051.67,0.00020957,2]
[322721642,1713228853646,-1064.37,0.00020957,2]
[322721643,1713228853661,-1051.67,0.00020957,2]
[322721644,1713228853675,-1064.58468013,0.00020957,2]
[322721645,1713228853688,-1051.70636273,0.00020957,2]
[322721646,1713228853707,-637.74,0.00020957,2]
[322721647,1713228853722,-637.74,0.00020957,2]
[322721648,1713228853736,-637.74,0.00020957,2]
[322721649,1713228853749,-637.74,0.00020957,2]
[322721650,1713228853763,-637.92,0.00020957,2]
[322721651,1713228853776,-1643.84,0.00020957,2]
[322721652,1713228853791,-1643.84,0.00020957,2]
[322721653,1713228853805,-1643.84,0.00020957,2]
[322721654,1713228853821,-1643.84,0.00020957,2]
[322721655,1713228853839,-1643.9453464,0.00020957,2]
[322721656,1713228853854,-1637.39,0.00020957,2]
[322721657,1713228853867,-1637.39,0.00020957,2]
[322721658,1713228853881,-1637.39,0.00020957,2]
[322721659,1713228853896,-1637.39,0.00020957,2]
[322721660,1713228853910,-1637.51941091,0.00020957,2]
[322721661,1713228853925,-1256.6,0.00020957,2]
[322721662,1713228853940,-1256.6,0.00020957,2]
[322721663,1713228853954,-1256.6,0.00020957,2]
[322721664,1713228853967,-1256.6,0.00020957,2]
[322721665,1713228853981,-1256.81718099,0.00020957,2]
[322721666,1713228853994,-1665.03,0.00020957,2]
[322721667,1713228854008,-1665.03,0.00020957,2]
[322721668,1713228854022,-523.25,0.00020957,2]
[322721669,1713228854035,-1665.03,0.00020957,2]
[322721670,1713228854052,-523.25,0.00020957,2]
[322721671,1713228854068,-1665.03,0.00020957,2]
[322721672,1713228854082,-523.25,0.00020957,2]
[322721673,1713228854096,-1665.03573551,0.00020957,2]
[322721674,1713228854110,-523.25,0.00020957,2]
[322721675,1713228854124,-523.48,0.00020957,2]
[322721676,1713228854138,-795.93,0.00020957,2]
[322721677,1713228854151,-795.93,0.00020957,2]
[322721678,1713228854576,-795.93,0.00020957,2]
[322721679,1713228854687,-852.13,0.00020957,2]
[322721680,1713228854698,-795.93,0.00020957,2]
[322721681,1713228854707,-796.01535483,0.00020957,2]
[322721682,1713228854716,-852.13,0.00020957,2]
[322721683,1713228854725,-852.13,0.00020957,2]
[322721684,1713228854734,-852.13,0.00020957,2]
[322721685,1713228854744,-852.18283593,0.00020957,2]
[322721686,1713228854754,-3377.04,0.00020957,2]
[322721687,1713228854763,-3377.04,0.00020957,2]
[322721688,1713228854774,-3377.04,0.00020957,2]
[322721689,1713228854783,-3377.04,0.00020957,2]
[322721690,1713228854794,-3377.26679252,0.00020957,2]
[322721691,1713228854803,-718.44,0.00020957,2]
[322721692,1713228854813,-718.44,0.00020957,2]
[322721693,1713228854823,-718.44,0.00020957,2]
[322721694,1713228854836,-718.44,0.00020957,2]
[322721695,1713228854845,-718.65866191,0.00020957,2]
[322721696,1713228854855,-500.0,0.00020957,2]
[322721697,1713228854864,-500.0,0.00020957,2]
[322721698,1713228854874,-239.78911856,0.00020957,2]
[322721699,1713228854883,-550.17,0.00020957,2]
[322721700,1713228854892,-550.17,0.00020957,2]
[322721701,1713228854902,-2051.23,0.00020957,2]
[322721702,1713228854911,-500.0,0.00020957,2]
[322721703,1713228854920,-550.17,0.00020957,2]
[322721704,1713228854930,-2051.23,0.00020957,2]
[322721705,1713228854939,-500.0,0.00020957,2]
[322721706,1713228854948,-550.17,0.00020957,2]
[322721707,1713228854957,-550.39,0.00020957,2]
[322721708,1713228854966,-306.35935627,0.00020957,2]
[322721709,1713228854975,-500.0,0.00020957,2]
[322721710,1713228854985,-2051.23,0.00020957,2]
[322721711,1713228854994,-500.0,0.00020957,2]
[322721712,1713228855004,-2051.23,0.00020957,2]
[322721713,1713228855013,-404.31693768,0.00020957,2]
[322721714,1713228855023,-2051.46812791,0.00020957,2]
[322721715,1713228855032,-540.94,0.00020957,2]
[322721716,1713228855043,-540.94,0.00020957,2]
[322721717,1713228855053,-540.94,0.00020957,2]
[322721718,1713228855062,-540.94,0.00020957,2]
[322721719,1713228855072,-540.96350364,0.00020957,2]
[322721720,1713228855081,-500.0,0.00020957,2]
[322721721,1713228855091,-500.0,0.00020957,2]
[322721722,1713228855101,-500.0,0.00020957,2]
[322721723,1713228855110,-512.88270002,0.00020957,2]
[322721724,1713228855119,-872.9,0.00020957,2]
[322721725,1713228855129,-872.9,0.00020957,2]
[322721726,1713228855139,-872.9,0.00020957,2]
[322721727,1713228855148,-2147.23,0.00020957,2]
[322721728,1713228855158,-872.9,0.00020957,2]
[322721729,1713228855166,-2147.23,0.00020957,2]
[322721730,1713228855177,-872.90428255,0.00020957,2]
[322721731,1713228855186,-2147.23,0.00020957,2]
[322721732,1713228855195,-2147.23,0.00020957,2]
[322721733,1713228855204,-2147.34744175,0.00020957,2]
[322721734,1713228855214,-4226.46,0.00020957,2]
[322721735,1713228855223,-4226.46,0.00020957,2]
[322721736,1713228855233,-4226.46,0.00020957,2]
[322721737,1713228855242,-4226.46,0.00020957,2]
[322721738,1713228855252,-4226.47543684,0.00020957,2]
[322721739,1713228855262,-739.73,0.00020957,2]
[322721740,1713228855271,-739.73,0.00020957,2]
[322721741,1713228855281,-739.73,0.00020957,2]
[322721742,1713228855294,-739.73,0.00020957,2]
[322721743,1713228855305,-739.79845355,0.00020957,2]
[322721744,1713228855314,-3391.63,0.00020957,2]
[322721745,1713228855324,-3391.63,0.00020957,2]
[322721746,1713228855334,-3391.63,0.00020957,2]
[322721747,1713228855344,-3391.63,0.00020957,2]
[322721748,1713228855354,-3391.76526069,0.00020957,2]
[322721749,1713228855363,-888.11,0.00020957,2]
[322721750,1713228855372,-888.11,0.00020957,2]
[322721751,1713228855383,-888.11,0.00020957,2]
[322721752,1713228855392,-888.11,0.00020957,2]
[322721753,1713228855401,-888.30423106,0.00020957,2]
[322721754,1713228855411,-4945.52,0.00020957,2]
[322721755,1713228855420,-4945.52,0.00020957,2]
[322721756,1713228855429,-4945.52,0.00020957,2]
[322721757,1713228855439,-4945.52,0.00020957,2]
[322721758,1713228855448,-4945.60854737,0.00020957,2]
[322721759,1713228855458,-653.68,0.00020957,2]
[322721760,1713228855467,-653.68,0.00020957,2]
[322721761,1713228855477,-653.68,0.00020957,2]
[322721762,1713228855486,-653.68,0.00020957,2]
[322721763,1713228855495,-653.76041127,0.00020957,2]
[322721764,1713228855504,-500.0,0.00020957,2]
[322721765,1713228855513,-500.0,0.00020957,2]
[322721766,1713228855522,-403.09853575,0.00020957,2]
[322721767,1713228855532,-533.19,0.00020957,2]
[322721768,1713228855542,-533.19,0.00020957,2]
[322721769,1713228855551,-3027.04,0.00020957,2]
[322721770,1713228855561,-3027.04,0.00020957,2]
[322721771,1713228855570,-533.19,0.00020957,2]
[322721772,1713228855580,-533.19,0.00020957,2]
[322721773,1713228855590,-3027.04,0.00020957,2]
[322721774,1713228855600,-533.31390517,0.00020957,2]
[322721775,1713228855610,-3027.04,0.00020957,2]
[322721776,1713228855619,-3027.04139576,0.00020957,2]
[322721777,1713228855629,-523.16,0.00020957,2]
[322721778,1713228855639,-523.16,0.00020957,2]
[322721779,1713228855648,-523.16,0.00020957,2]
[322721780,1713228855658,-523.16,0.00020957,2]
[322721781,1713228855667,-523.25215084,0.00020957,2]
[322721782,1713228855677,-909.24,0.00020957,2]
[322721783,1713228855686,-909.24,0.00020957,2]
[322721784,1713228855695,-909.24,0.00020957,2]
[322721785,1713228855705,-909.24,0.00020957,2]
[322721786,1713228855714,-909.43088686,0.00020957,2]
[322721787,1713228855723,-1182.16,0.00020957,2]
[322721788,1713228855733,-1182.16,0.00020957,2]
[322721789,1713228855742,-1182.16,0.00020957,2]
[322721790,1713228855751,-1182.16,0.00020957,2]
[322721791,1713228855761,-925.78,0.00020957,2]
[322721792,1713228855770,-1182.36885494,0.00020957,2]
[322721793,1713228855780,-1742.97,0.00020957,2]
[322721794,1713228855792,-1742.97,0.00020957,2]
[322721795,1713228855802,-1742.97,0.00020957,2]
[322721796,1713228855811,-1742.97,0.00020957,2]
[322721797,1713228855821,-1742.97773637,0.00020957,2]
[322721798,1713228855835,-925.78,0.00020957,2]
[322721799,1713228855844,-925.78,0.00020957,2]
[322721800,1713228855854,-925.78,0.00020957,2]
[322721801,1713228855864,-925.98332536,0.00020957,2]
[322721802,1713228855874,-1137.76,0.00020957,2]
[322721803,1713228855884,-1137.76,0.00020957,2]
[322721804,1713228855893,-1137.76,0.00020957,2]
[322721805,1713228855903,-1137.76,0.00020957,2]
[322721806,1713228855914,-1137.77,0.00020957,2]
[322721807,1713228855924,-216.64675328,0.00020957,2]
[322721808,1713228855934,-585.27,0.00020957,2]
[322721809,1713228855943,-585.27,0.00020957,2]
[322721810,1713228855953,-585.27,0.00020957,2]
[322721811,1713228855963,-585.27,0.00020957,2]
[322721812,1713228855974,-585.2936719,0.00020957,2]
[322721813,1713228855984,-1042.63,0.00020957,2]
[322721814,1713228855993,-1042.63,0.00020957,2]
[322721815,1713228856002,-1042.63,0.00020957,2]
[322721816,1713228856012,-1042.63,0.00020957,2]
[322721817,1713228856022,-1042.80066943,0.00020957,2]
[322721818,1713228856032,-515.75,0.00020957,2]
[322721819,1713228856042,-515.75,0.00020957,2]
[322721820,1713228856050,-515.75,0.00020957,2]
[322721821,1713228856059,-515.75,0.00020957,2]
[322721822,1713228856068,-515.87347332,0.00020957,2]
[322721823,1713228856078,-766.97,0.00020957,2]
[322721824,1713228856088,-766.97,0.00020957,2]
[322721825,1713228856097,-766.97,0.00020957,2]
[322721826,1713228856107,-766.97,0.00020957,2]
[322721827,1713228856117,-767.10800608,0.00020957,2]
[322721828,1713228856127,-273.76294584,0.00020957,2]
[322721829,1713228856137,-1307.39,0.00020957,2]
[322721830,1713228856147,-1307.39,0.00020957,2]
[322721831,1713228856156,-1307.39,0.00020957,2]
[322721832,1713228856166,-1307.39,0.00020957,2]
[322721833,1713228856175,-1307.42307802,0.00020957,2]
[322721834,1713228856185,-949.4,0.00020957,2]
[322721835,1713228856195,-949.4,0.00020957,2]
[322721836,1713228856204,-949.4,0.00020957,2]
[322721837,1713228856215,-500.65,0.00020957,2]
[322721838,1713228856224,-949.4,0.00020957,2]
[322721839,1713228856234,-500.65,0.00020957,2]
[322721840,1713228856244,-949.42,0.00020957,2]
[322721841,1713228856253,-500.65,0.00020957,2]
[322721842,1713228856263,-500.65,0.00020957,2]
[322721843,1713228856273,-500.74735082,0.00020957,2]
[322721844,1713228856284,-1733.3,0.00020957,2]
[322721845,1713228856295,-1733.3,0.00020957,2]
[322721846,1713228856306,-1733.3,0.00020957,2]
[322721847,1713228856315,-1733.3,0.00020957,2]
[322721848,1713228856325,-1733.30549837,0.00020957,2]
[322721849,1713228856335,-741.27,0.00020957,2]
[322721850,1713228856345,-741.27,0.00020957,2]
[322721851,1713228856355,-741.27,0.00020957,2]
[322721852,1713228856365,-741.27,0.00020957,2]
[322721853,1713228856375,-741.39,0.00020957,2]
[322721854,1713228856384,-1434.18,0.00020957,2]
[322721855,1713228856394,-1434.18,0.00020957,2]
[322721856,1713228856404,-1434.18,0.00020957,2]
[322721857,1713228856414,-1434.18,0.00020957,2]
[322721858,1713228856424,-1434.40312165,0.00020957,2]
[322721859,1713228856435,-827.99,0.00020957,2]
[322721860,1713228856445,-827.99,0.00020957,2]
[322721861,1713228856456,-827.99,0.00020957,2]
[322721862,1713228856466,-827.99,0.00020957,2]
[322721863,1713228856476,-828.2235519,0.00020957,2]
[322721864,1713228856486,-633.9249307,0.00020957,2]
[322721865,1713228856496,-822.07,0.00020957,2]
[322721866,1713228856505,-822.07,0.00020957,2]
[322721867,1713228856515,-822.07,0.00020957,2]
[322721868,1713228856523,-822.07,0.00020957,2]
[322721869,1713228856533,-822.09534179,0.00020957,2]
[322721870,1713228856546,-2156.99,0.00020957,2]
[322721871,1713228856555,-2156.99,0.00020957,2]